[Event "Titled Tuesday Blitz April 4 Early 2023"]
[White "Fernandez Sanchez, Mario Andres"]
[Black "KorolDimitriy75"]
[WhiteFideId "6501621"]
[WhiteElo "2050"]
[BlackElo "2467"]
[Result "1-0"]
[Round "04"]
[TimeControl "180+2"]
[Date "2023.04.04"]
[WhiteClock "0:00:50"]
[BlackClock "0:00:02"]

1. d4 {[%clk 0:03:00]}  Nf6 {[%clk 0:02:59]} 2. Bf4 {[%clk 0:03:01]}  c5 {[%clk 0:02:59]} 3. d5 {[%clk 0:03:01]}  Qb6 {[%clk 0:02:48]} 4. Bc1 {[%clk 0:03:01]}  g6 {[%clk 0:02:47]} 5. Nc3 {[%clk 0:02:59]}  Bg7 {[%clk 0:02:46]} 6. e4 {[%clk 0:03:00]}  d6 {[%clk 0:02:40]} 7. Be2 {[%clk 0:02:59]}  O-O {[%clk 0:02:39]} 8. Nf3 {[%clk 0:02:59]}  e6 {[%clk 0:02:39]} 9. Nd2 {[%clk 0:02:57]}  exd5 {[%clk 0:02:35]} 10. exd5 {[%clk 0:02:58]}  Qd8 {[%clk 0:02:16]} 11. O-O {[%clk 0:02:54]}  Nbd7 {[%clk 0:02:03]} 12. Nc4 {[%clk 0:02:54]}  Nb6 {[%clk 0:02:02]} 13. a4 {[%clk 0:02:48]}  Re8 {[%clk 0:01:58]} 14. Bg5 {[%clk 0:02:46]}  Nxc4 {[%clk 0:01:54]} 15. Bxc4 {[%clk 0:02:45]}  h6 {[%clk 0:01:54]} 16. Bh4 {[%clk 0:02:44]}  a6 {[%clk 0:01:46]} 17. Re1 {[%clk 0:02:39]}  Rxe1+ {[%clk 0:01:29]} 18. Qxe1 {[%clk 0:02:40]}  Bf5 {[%clk 0:01:29]} 19. Qd2 {[%clk 0:02:38]}  Qd7 {[%clk 0:01:27]} 20. Re1 {[%clk 0:02:34]}  Re8 {[%clk 0:01:10]} 21. Rxe8+ {[%clk 0:02:33]}  Qxe8 {[%clk 0:01:11]} 22. Bg3 {[%clk 0:02:32]}  Qe7 {[%clk 0:01:06]} 23. f3 {[%clk 0:02:21]}  Kh7 {[%clk 0:01:04]} 24. Bd3 {[%clk 0:02:20]}  Bxd3 {[%clk 0:01:02]} 25. Qxd3 {[%clk 0:02:20]}  Nh5 {[%clk 0:00:49]} 26. Bf2 {[%clk 0:02:18]}  Nf4 {[%clk 0:00:47]} 27. Qd2 {[%clk 0:02:11]}  Bxc3 {[%clk 0:00:32]} 28. bxc3 {[%clk 0:02:12]}  Qe5 {[%clk 0:00:29]} 29. c4 {[%clk 0:02:04]}  Qa1+ {[%clk 0:00:19]} 30. Be1 {[%clk 0:02:02]}  g5 {[%clk 0:00:15]} 31. g3 {[%clk 0:01:55]}  Ng6 {[%clk 0:00:14]} 32. Qa5 {[%clk 0:01:44]}  Ne5 {[%clk 0:00:12]} 33. Kg2 {[%clk 0:01:33]}  Qd1 {[%clk 0:00:11]} 34. Qc3 {[%clk 0:01:24]}  Nxc4 {[%clk 0:00:09]} 35. Bf2 {[%clk 0:01:11]}  Nd2 {[%clk 0:00:08]} 36. Qd3+ {[%clk 0:01:06]}  Kg8 {[%clk 0:00:07]} 37. h4 {[%clk 0:01:00]}  c4 {[%clk 0:00:04]} 38. Qe3 {[%clk 0:00:51]}  Qf1+ {[%clk 0:00:02]} 39. Kh2 {[%clk 0:00:50]} 1-0


[Site "https://www.chess.com"]

[Event "Titled Tuesday Blitz April 4 Early 2023"]
[White "Shubenkova, Veronika"]
[Black "Orujov2008"]
[WhiteFideId "44124040"]
[WhiteElo "2027"]
[BlackElo "2288"]
[Result "1-0"]
[Round "04"]
[TimeControl "180+2"]
[Date "2023.04.04"]
[WhiteClock "0:01:29"]
[BlackClock "0:00:08"]

1. e4 {[%clk 0:03:00]}  e5 {[%clk 0:02:59]} 2. Nf3 {[%clk 0:03:00]}  Nf6 {[%clk 0:03:00]} 3. Nxe5 {[%clk 0:03:00]}  Nxe4 {[%clk 0:03:00]} 4. Qe2 {[%clk 0:03:00]}  Qe7 {[%clk 0:03:00]} 5. Qxe4 {[%clk 0:02:57]}  d6 {[%clk 0:03:00]} 6. d4 {[%clk 0:02:57]}  dxe5 {[%clk 0:03:00]} 7. dxe5 {[%clk 0:02:57]}  Nc6 {[%clk 0:03:01]} 8. Bb5 {[%clk 0:02:56]}  Bd7 {[%clk 0:03:00]} 9. Bd2 {[%clk 0:02:50]}  O-O-O {[%clk 0:02:53]} 10. Nc3 {[%clk 0:02:48]}  Nxe5 {[%clk 0:02:47]} 11. Bxd7+ {[%clk 0:02:48]}  Nxd7 {[%clk 0:02:48]} 12. Qxe7 {[%clk 0:02:47]}  Bxe7 {[%clk 0:02:49]} 13. O-O-O {[%clk 0:02:47]}  Nf6 {[%clk 0:02:45]} 14. Be3 {[%clk 0:02:45]}  a6 {[%clk 0:02:40]} 15. h3 {[%clk 0:02:45]}  Rxd1+ {[%clk 0:02:40]} 16. Rxd1 {[%clk 0:02:45]}  Rd8 {[%clk 0:02:40]} 17. Rxd8+ {[%clk 0:02:44]}  Kxd8 {[%clk 0:02:41]} 18. Kd2 {[%clk 0:02:44]}  Kd7 {[%clk 0:02:41]} 19. a3 {[%clk 0:02:44]}  Bd6 {[%clk 0:02:36]} 20. f3 {[%clk 0:02:39]}  Ke6 {[%clk 0:02:34]} 21. Ne2 {[%clk 0:02:38]}  c5 {[%clk 0:02:28]} 22. b3 {[%clk 0:02:33]}  Nd5 {[%clk 0:02:27]} 23. c4 {[%clk 0:02:29]}  Nxe3 {[%clk 0:02:20]} 24. Kxe3 {[%clk 0:02:30]}  g5 {[%clk 0:02:14]} 25. g4 {[%clk 0:02:29]}  f5 {[%clk 0:02:07]} 26. Nc3 {[%clk 0:02:25]}  Be5 {[%clk 0:01:58]} 27. Nd5 {[%clk 0:02:18]}  Bd4+ {[%clk 0:01:57]} 28. Kd3 {[%clk 0:02:17]}  fxg4 {[%clk 0:01:57]} 29. fxg4 {[%clk 0:02:18]}  Ke5 {[%clk 0:01:57]} 30. a4 {[%clk 0:02:17]}  a5 {[%clk 0:01:50]} 31. Ne7 {[%clk 0:01:53]}  Kf4 {[%clk 0:01:37]} 32. Nf5 {[%clk 0:01:53]}  Be5 {[%clk 0:00:58]} 33. Ke2 {[%clk 0:01:52]}  Ke4 {[%clk 0:00:57]} 34. Nh6 {[%clk 0:01:43]}  Kd4 {[%clk 0:00:48]} 35. Nf7 {[%clk 0:01:43]}  Bf4 {[%clk 0:00:48]} 36. Nd8 {[%clk 0:01:43]}  b6 {[%clk 0:00:42]} 37. Ne6+ {[%clk 0:01:41]}  Ke4 {[%clk 0:00:21]} 38. Nf8 {[%clk 0:01:37]}  h6 {[%clk 0:00:20]} 39. Nd7 {[%clk 0:01:36]}  Kd4 {[%clk 0:00:15]} 40. Nxb6 {[%clk 0:01:34]}  Kc3 {[%clk 0:00:15]} 41. Nd5+ {[%clk 0:01:34]}  Kxb3 {[%clk 0:00:14]} 42. Nxf4 {[%clk 0:01:34]}  gxf4 {[%clk 0:00:15]} 43. h4 {[%clk 0:01:34]}  Kxc4 {[%clk 0:00:13]} 44. g5 {[%clk 0:01:35]}  hxg5 {[%clk 0:00:10]} 45. h5 {[%clk 0:01:35]}  Kd5 {[%clk 0:00:10]} 46. h6 {[%clk 0:01:35]}  Ke4 {[%clk 0:00:08]} 47. h7 {[%clk 0:01:36]}  g4 {[%clk 0:00:08]} 48. h8=Q {[%clk 0:01:36]}  f3+ {[%clk 0:00:09]} 49. Kf2 {[%clk 0:01:36]}  c4 {[%clk 0:00:10]} 50. Qe8+ {[%clk 0:01:35]}  Kd3 {[%clk 0:00:10]} 51. Qd7+ {[%clk 0:01:34]}  Kc2 {[%clk 0:00:09]} 52. Qxg4 {[%clk 0:01:34]}  c3 {[%clk 0:00:10]} 53. Qxf3 {[%clk 0:01:34]}  Kb2 {[%clk 0:00:10]} 54. Qf6 {[%clk 0:01:31]}  Kb3 {[%clk 0:00:08]} 55. Qc6 {[%clk 0:01:28]}  c2 {[%clk 0:00:08]} 56. Ke2 {[%clk 0:01:29]}  Kb2 {[%clk 0:00:08]} 1-0


[Site "https://www.chess.com"]

[Event "Titled Tuesday Blitz April 4 Early 2023"]
[White "Levitan, Caleb Levi"]
[Black "Khandelwal, Ankush"]
[WhiteFideId "14332620"]
[BlackFideId "413470"]
[WhiteElo "1963"]
[BlackElo "2263"]
[Result "0-1"]
[Round "04"]
[TimeControl "180+2"]
[Date "2023.04.04"]
[WhiteClock "0:00:01"]
[BlackClock "0:00:21"]

1. e4 {[%clk 0:02:59]}  c5 {[%clk 0:02:59]} 2. Nf3 {[%clk 0:02:59]}  d6 {[%clk 0:02:58]} 3. d4 {[%clk 0:02:59]}  cxd4 {[%clk 0:02:58]} 4. Qxd4 {[%clk 0:02:59]}  Nc6 {[%clk 0:02:52]} 5. Bb5 {[%clk 0:02:58]}  Bd7 {[%clk 0:02:43]} 6. Bxc6 {[%clk 0:02:57]}  bxc6 {[%clk 0:02:35]} 7. Nc3 {[%clk 0:02:47]}  e5 {[%clk 0:02:30]} 8. Qd3 {[%clk 0:02:46]}  Be7 {[%clk 0:02:28]} 9. Be3 {[%clk 0:02:43]}  Nf6 {[%clk 0:02:21]} 10. O-O {[%clk 0:02:37]}  h6 {[%clk 0:02:17]} 11. h3 {[%clk 0:02:36]}  O-O {[%clk 0:02:17]} 12. Rad1 {[%clk 0:02:34]}  Qc7 {[%clk 0:02:17]} 13. Ne2 {[%clk 0:02:26]}  Rab8 {[%clk 0:02:15]} 14. b3 {[%clk 0:02:25]}  Be6 {[%clk 0:02:13]} 15. c4 {[%clk 0:02:23]}  Rfd8 {[%clk 0:02:12]} 16. Ng3 {[%clk 0:01:54]}  d5 {[%clk 0:02:08]} 17. cxd5 {[%clk 0:01:52]}  cxd5 {[%clk 0:02:09]} 18. Rc1 {[%clk 0:01:47]}  Qa5 {[%clk 0:02:01]} 19. exd5 {[%clk 0:01:16]}  Bxd5 {[%clk 0:02:01]} 20. Qe2 {[%clk 0:01:07]}  Ba3 {[%clk 0:01:56]} 21. Rcd1 {[%clk 0:01:05]}  Bb7 {[%clk 0:01:53]} 22. Nf5 {[%clk 0:00:57]}  Ba6 {[%clk 0:01:51]} 23. Rxd8+ {[%clk 0:00:48]}  Rxd8 {[%clk 0:01:49]} 24. Qe1 {[%clk 0:00:45]}  Bb4 {[%clk 0:01:38]} 25. Qb1 {[%clk 0:00:32]}  Bd3 {[%clk 0:01:38]} 26. Qa1 {[%clk 0:00:23]}  Bxf5 {[%clk 0:01:36]} 27. Rc1 {[%clk 0:00:18]}  Ba3 {[%clk 0:01:30]} 28. Re1 {[%clk 0:00:17]}  e4 {[%clk 0:01:22]} 29. Nd4 {[%clk 0:00:17]}  Bb2 {[%clk 0:01:20]} 30. Qxb2 {[%clk 0:00:08]}  Qxe1+ {[%clk 0:01:20]} 31. Kh2 {[%clk 0:00:09]}  Bd7 {[%clk 0:01:06]} 32. Qa3 {[%clk 0:00:08]}  Nd5 {[%clk 0:01:00]} 33. Bc1 {[%clk 0:00:04]}  Qxf2 {[%clk 0:00:57]} 34. Qd6 {[%clk 0:00:04]}  Rc8 {[%clk 0:00:29]} 35. Qxd7 {[%clk 0:00:03]}  Rxc1 {[%clk 0:00:27]} 36. Qe8+ {[%clk 0:00:03]}  Kh7 {[%clk 0:00:24]} 37. Qxe4+ {[%clk 0:00:04]}  g6 {[%clk 0:00:20]} 38. Qxd5 {[%clk 0:00:05]}  Qf4+ {[%clk 0:00:20]} 39. g3 {[%clk 0:00:04]}  Qd2+ {[%clk 0:00:21]} 40. Qg2 {[%clk 0:00:02]}  Qxd4 {[%clk 0:00:21]} 41. Qf3 {[%clk 0:00:01]}  Rc2+ {[%clk 0:00:21]} 42. Kh1 {[%clk 0:00:01]}  Qa1+ {[%clk 0:00:21]} 0-1


[Site "https://www.chess.com"]

[Event "Titled Tuesday Blitz April 4 Early 2023"]
[White "De Souza, Cristiano Gomes"]
[Black "Maxfan2008"]
[WhiteFideId "2151758"]
[WhiteElo "2068"]
[BlackElo "2430"]
[Result "0-1"]
[Round "04"]
[TimeControl "180+2"]
[Date "2023.04.04"]
[WhiteClock "0:00:14"]
[BlackClock "0:00:20"]

1. d4 {[%clk 0:03:00]}  Nf6 {[%clk 0:02:59]} 2. c4 {[%clk 0:02:58]}  e6 {[%clk 0:02:59]} 3. Nf3 {[%clk 0:02:57]}  c5 {[%clk 0:02:58]} 4. d5 {[%clk 0:02:56]}  b5 {[%clk 0:02:58]} 5. dxe6 {[%clk 0:02:54]}  fxe6 {[%clk 0:02:58]} 6. cxb5 {[%clk 0:02:55]}  Bb7 {[%clk 0:02:58]} 7. g3 {[%clk 0:02:55]}  Be7 {[%clk 0:02:57]} 8. Bh3 {[%clk 0:02:52]}  O-O {[%clk 0:02:56]} 9. O-O {[%clk 0:02:50]}  a6 {[%clk 0:02:52]} 10. Nc3 {[%clk 0:02:48]}  Qb6 {[%clk 0:02:49]} 11. bxa6 {[%clk 0:02:47]}  Nxa6 {[%clk 0:02:47]} 12. b3 {[%clk 0:02:44]}  d5 {[%clk 0:02:46]} 13. Na4 {[%clk 0:02:40]}  Qc6 {[%clk 0:02:41]} 14. Bb2 {[%clk 0:02:38]}  d4 {[%clk 0:02:40]} 15. Bg2 {[%clk 0:02:37]}  Nb4 {[%clk 0:02:36]} 16. a3 {[%clk 0:02:31]}  Nbd5 {[%clk 0:02:32]} 17. Rc1 {[%clk 0:02:28]}  Qd6 {[%clk 0:02:28]} 18. Nd2 {[%clk 0:02:20]}  Ng4 {[%clk 0:02:21]} 19. Nc4 {[%clk 0:02:20]}  Qd8 {[%clk 0:02:14]} 20. h3 {[%clk 0:02:15]}  Nh6 {[%clk 0:01:40]} 21. e3 {[%clk 0:02:02]}  dxe3 {[%clk 0:01:32]} 22. fxe3 {[%clk 0:02:01]}  Nf5 {[%clk 0:01:30]} 23. Qe1 {[%clk 0:01:37]}  Rxa4 {[%clk 0:00:55]} 24. bxa4 {[%clk 0:01:34]}  Bg5 {[%clk 0:00:54]} 25. e4 {[%clk 0:01:28]}  Bxc1 {[%clk 0:00:39]} 26. Bxc1 {[%clk 0:01:23]}  Nc7 {[%clk 0:00:38]} 27. exf5 {[%clk 0:01:21]}  Bxg2 {[%clk 0:00:37]} 28. Kxg2 {[%clk 0:01:20]}  Qd5+ {[%clk 0:00:37]} 29. Rf3 {[%clk 0:01:13]}  Qxc4 {[%clk 0:00:38]} 30. fxe6 {[%clk 0:01:00]}  Qd5 {[%clk 0:00:35]} 31. Qe2 {[%clk 0:00:50]}  Nxe6 {[%clk 0:00:34]} 32. Kf2 {[%clk 0:00:37]}  Rb8 {[%clk 0:00:34]} 33. Rd3 {[%clk 0:00:22]}  Nd4 {[%clk 0:00:30]} 34. Qd1 {[%clk 0:00:17]}  Rf8+ {[%clk 0:00:28]} 35. Kg1 {[%clk 0:00:17]}  Nf3+ {[%clk 0:00:24]} 36. Kf2 {[%clk 0:00:15]}  Ne5+ {[%clk 0:00:22]} 37. Ke2 {[%clk 0:00:15]}  Nxd3 {[%clk 0:00:22]} 38. Qxd3 {[%clk 0:00:15]}  Rf2+ {[%clk 0:00:20]} 39. Ke3 {[%clk 0:00:14]}  Rf3+ {[%clk 0:00:20]} 0-1


[Site "https://www.chess.com"]

[Event "Titled Tuesday Blitz April 4 Early 2023"]
[White "Goncalves, Davi Sulzbacher"]
[Black "Tsotsonava, Elene"]
[WhiteFideId "2154510"]
[BlackFideId "13615939"]
[WhiteElo "2182"]
[BlackElo "1829"]
[Result "0-1"]
[Round "04"]
[TimeControl "180+2"]
[Date "2023.04.04"]
[WhiteClock "0:00:20"]
[BlackClock "0:00:45"]

1. e4 {[%clk 0:03:00]}  c5 {[%clk 0:02:59]} 2. Nf3 {[%clk 0:03:01]}  Nc6 {[%clk 0:02:58]} 3. d4 {[%clk 0:03:01]}  cxd4 {[%clk 0:02:59]} 4. Nxd4 {[%clk 0:03:02]}  e6 {[%clk 0:03:00]} 5. Be2 {[%clk 0:03:01]}  Qc7 {[%clk 0:02:59]} 6. O-O {[%clk 0:03:01]}  Nf6 {[%clk 0:02:59]} 7. Nc3 {[%clk 0:02:52]}  Be7 {[%clk 0:02:57]} 8. Be3 {[%clk 0:02:48]}  O-O {[%clk 0:02:55]} 9. f4 {[%clk 0:02:38]}  d6 {[%clk 0:02:52]} 10. g4 {[%clk 0:02:29]}  Nxd4 {[%clk 0:02:46]} 11. Bxd4 {[%clk 0:02:28]}  e5 {[%clk 0:02:47]} 12. Bf2 {[%clk 0:02:12]}  exf4 {[%clk 0:02:34]} 13. g5 {[%clk 0:02:11]}  Nd7 {[%clk 0:02:34]} 14. Nd5 {[%clk 0:02:10]}  Qd8 {[%clk 0:02:35]} 15. h4 {[%clk 0:02:08]}  Bxg5 {[%clk 0:02:24]} 16. hxg5 {[%clk 0:01:50]}  Qxg5+ {[%clk 0:02:25]} 17. Kh2 {[%clk 0:01:50]}  Ne5 {[%clk 0:02:16]} 18. Rh1 {[%clk 0:01:41]}  Bg4 {[%clk 0:01:41]} 19. Qg1 {[%clk 0:01:19]}  Bxe2 {[%clk 0:01:37]} 20. Qxg5 {[%clk 0:01:16]}  Nf3+ {[%clk 0:01:38]} 21. Kg2 {[%clk 0:01:17]}  Nxg5 {[%clk 0:01:39]} 22. Ne7+ {[%clk 0:01:17]}  Kh8 {[%clk 0:01:38]} 23. Bh4 {[%clk 0:01:09]}  Bf3+ {[%clk 0:01:36]} 24. Kf2 {[%clk 0:01:07]}  Bxh1 {[%clk 0:01:36]} 25. Bxg5 {[%clk 0:00:59]}  Bxe4 {[%clk 0:01:34]} 26. Bxf4 {[%clk 0:00:59]}  Rfe8 {[%clk 0:01:26]} 27. Bxd6 {[%clk 0:00:58]}  Rad8 {[%clk 0:01:23]} 28. Ba3 {[%clk 0:00:57]}  Rd7 {[%clk 0:01:17]} 29. Re1 {[%clk 0:00:55]}  Rdxe7 {[%clk 0:01:14]} 30. Bxe7 {[%clk 0:00:56]}  Rxe7 {[%clk 0:01:15]} 31. Kg3 {[%clk 0:00:56]}  Re6 {[%clk 0:01:14]} 32. c4 {[%clk 0:00:53]}  h5 {[%clk 0:01:10]} 33. c5 {[%clk 0:00:48]}  g5 {[%clk 0:01:10]} 34. b4 {[%clk 0:00:46]}  Bf5 {[%clk 0:01:08]} 35. Rd1 {[%clk 0:00:44]}  h4+ {[%clk 0:01:07]} 36. Kf3 {[%clk 0:00:43]}  h3 {[%clk 0:01:01]} 37. b5 {[%clk 0:00:37]}  g4+ {[%clk 0:00:59]} 38. Kf4 {[%clk 0:00:34]}  Be4 {[%clk 0:00:56]} 39. Rd2 {[%clk 0:00:28]}  Bf3 {[%clk 0:00:51]} 40. a4 {[%clk 0:00:26]}  Re2 {[%clk 0:00:46]} 41. Rd8+ {[%clk 0:00:20]}  Kg7 {[%clk 0:00:45]} 0-1


[Site "https://www.chess.com"]

[Event "Titled Tuesday Blitz April 4 Early 2023"]
[White "Kielinkei"]
[Black "Aponte Ramos, Argimiro"]
[BlackFideId "3900568"]
[WhiteElo "2422"]
[BlackElo "2216"]
[Result "1/2-1/2"]
[Round "04"]
[TimeControl "180+2"]
[Date "2023.04.04"]
[WhiteClock "0:00:11"]
[BlackClock "0:00:13"]

1. e4 {[%clk 0:03:00]}  a6 {[%clk 0:02:59]} 2. d4 {[%clk 0:03:00]}  b5 {[%clk 0:02:59]} 3. Bd3 {[%clk 0:02:59]}  Bb7 {[%clk 0:02:59]} 4. a4 {[%clk 0:02:58]}  e6 {[%clk 0:02:59]} 5. axb5 {[%clk 0:02:57]}  axb5 {[%clk 0:03:00]} 6. Rxa8 {[%clk 0:02:57]}  Bxa8 {[%clk 0:03:01]} 7. Nf3 {[%clk 0:02:54]}  c5 {[%clk 0:03:01]} 8. c3 {[%clk 0:02:53]}  b4 {[%clk 0:02:56]} 9. O-O {[%clk 0:02:53]}  bxc3 {[%clk 0:02:55]} 10. Nxc3 {[%clk 0:02:49]}  cxd4 {[%clk 0:02:56]} 11. Nxd4 {[%clk 0:02:50]}  Nf6 {[%clk 0:02:52]} 12. Qa4 {[%clk 0:02:29]}  Nc6 {[%clk 0:02:48]} 13. Be3 {[%clk 0:02:08]}  Be7 {[%clk 0:02:37]} 14. h3 {[%clk 0:01:53]}  O-O {[%clk 0:02:36]} 15. f4 {[%clk 0:01:48]}  Qb6 {[%clk 0:02:27]} 16. e5 {[%clk 0:01:41]}  Nxd4 {[%clk 0:01:55]} 17. Bxd4 {[%clk 0:01:38]}  Bc5 {[%clk 0:01:52]} 18. Bxc5 {[%clk 0:01:32]}  Qxc5+ {[%clk 0:01:53]} 19. Kh2 {[%clk 0:01:31]}  Nd5 {[%clk 0:01:46]} 20. Ne4 {[%clk 0:01:22]}  Qe3 {[%clk 0:01:43]} 21. Bb1 {[%clk 0:00:55]}  Bc6 {[%clk 0:01:41]} 22. Qc4 {[%clk 0:00:46]}  Rb8 {[%clk 0:01:21]} 23. Qd3 {[%clk 0:00:26]}  Qxd3 {[%clk 0:01:11]} 24. Bxd3 {[%clk 0:00:26]}  Rxb2 {[%clk 0:01:09]} 25. Kg3 {[%clk 0:00:13]}  Ne3 {[%clk 0:01:06]} 26. Rf2 {[%clk 0:00:10]}  Nf5+ {[%clk 0:00:58]} 27. Kf3 {[%clk 0:00:08]}  Rxf2+ {[%clk 0:00:52]} 28. Kxf2 {[%clk 0:00:08]}  Bxe4 {[%clk 0:00:52]} 29. Bxe4 {[%clk 0:00:09]}  Ne7 {[%clk 0:00:51]} 30. Ke3 {[%clk 0:00:07]}  f6 {[%clk 0:00:51]} 31. Kd4 {[%clk 0:00:05]}  h6 {[%clk 0:00:46]} 32. Kc5 {[%clk 0:00:06]}  Kf7 {[%clk 0:00:37]} 33. Kd6 {[%clk 0:00:05]}  Ke8 {[%clk 0:00:37]} 34. Bc2 {[%clk 0:00:03]}  Nd5 {[%clk 0:00:26]} 35. g3 {[%clk 0:00:02]}  Nb6 {[%clk 0:00:20]} 36. Bb3 {[%clk 0:00:02]}  Nc8+ {[%clk 0:00:14]} 37. Kc7 {[%clk 0:00:02]}  Ne7 {[%clk 0:00:14]} 38. exf6 {[%clk 0:00:02]}  gxf6 {[%clk 0:00:14]} 39. g4 {[%clk 0:00:03]}  Nc6 {[%clk 0:00:12]} 40. Kd6 {[%clk 0:00:03]}  Nd4 {[%clk 0:00:12]} 41. Ba2 {[%clk 0:00:03]}  Nc6 {[%clk 0:00:10]} 42. Bxe6 {[%clk 0:00:03]}  dxe6 {[%clk 0:00:09]} 43. Kxc6 {[%clk 0:00:03]}  Ke7 {[%clk 0:00:08]} 44. Kc5 {[%clk 0:00:04]}  Kd7 {[%clk 0:00:08]} 45. Kd4 {[%clk 0:00:04]}  Kd6 {[%clk 0:00:08]} 46. Ke4 {[%clk 0:00:05]}  Kc5 {[%clk 0:00:06]} 47. h4 {[%clk 0:00:04]}  Kd6 {[%clk 0:00:05]} 48. g5 {[%clk 0:00:05]}  fxg5 {[%clk 0:00:04]} 49. fxg5 {[%clk 0:00:05]}  hxg5 {[%clk 0:00:04]} 50. hxg5 {[%clk 0:00:04]}  Ke7 {[%clk 0:00:04]} 51. Ke5 {[%clk 0:00:04]}  Kf7 {[%clk 0:00:04]} 52. Kf4 {[%clk 0:00:04]}  Kg6 {[%clk 0:00:04]} 53. Kg4 {[%clk 0:00:04]}  e5 {[%clk 0:00:04]} 54. Kg3 {[%clk 0:00:03]}  Kxg5 {[%clk 0:00:04]} 55. Kf3 {[%clk 0:00:03]}  Kf5 {[%clk 0:00:04]} 56. Ke3 {[%clk 0:00:04]}  e4 {[%clk 0:00:04]} 57. Ke2 {[%clk 0:00:05]}  Kf4 {[%clk 0:00:05]} 58. Kf2 {[%clk 0:00:05]}  Ke5 {[%clk 0:00:06]} 59. Ke3 {[%clk 0:00:06]}  Kd5 {[%clk 0:00:05]} 60. Ke2 {[%clk 0:00:06]}  Kd4 {[%clk 0:00:06]} 61. Kd2 {[%clk 0:00:06]}  e3+ {[%clk 0:00:07]} 62. Ke2 {[%clk 0:00:07]}  Ke4 {[%clk 0:00:07]} 63. Ke1 {[%clk 0:00:08]}  Kf3 {[%clk 0:00:08]} 64. Kf1 {[%clk 0:00:08]}  Ke4 {[%clk 0:00:08]} 65. Ke2 {[%clk 0:00:09]}  Kd4 {[%clk 0:00:08]} 66. Ke1 {[%clk 0:00:09]}  Kc3 {[%clk 0:00:08]} 67. Ke2 {[%clk 0:00:10]}  Kd4 {[%clk 0:00:09]} 68. Ke1 {[%clk 0:00:10]}  Kd3 {[%clk 0:00:10]} 69. Kd1 {[%clk 0:00:09]}  Ke4 {[%clk 0:00:10]} 70. Ke2 {[%clk 0:00:09]}  Kf4 {[%clk 0:00:11]} 71. Ke1 {[%clk 0:00:10]}  Kf3 {[%clk 0:00:12]} 72. Kf1 {[%clk 0:00:10]}  e2+ {[%clk 0:00:12]} 73. Ke1 {[%clk 0:00:11]}  Ke3 {[%clk 0:00:13]} 1/2-1/2


[Site "https://www.chess.com"]

[Event "Titled Tuesday Blitz April 4 Early 2023"]
[White "Omariev, Maksim"]
[Black "Barria Santos, Jose Guilherme"]
[WhiteFideId "4193423"]
[BlackFideId "1939300"]
[WhiteElo "2420"]
[BlackElo "2266"]
[Result "1-0"]
[Round "04"]
[TimeControl "180+2"]
[Date "2023.04.04"]
[WhiteClock "0:00:01"]
[BlackClock "0:00:02"]

1. g4 {[%clk 0:02:57]}  d5 {[%clk 0:02:58]} 2. Bg2 {[%clk 0:02:57]}  Bxg4 {[%clk 0:02:57]} 3. c4 {[%clk 0:02:57]}  c6 {[%clk 0:02:47]} 4. Qb3 {[%clk 0:02:55]}  dxc4 {[%clk 0:02:35]} 5. Qxb7 {[%clk 0:02:51]}  Nd7 {[%clk 0:02:35]} 6. Na3 {[%clk 0:02:40]}  Ngf6 {[%clk 0:02:23]} 7. Nxc4 {[%clk 0:02:19]}  Be6 {[%clk 0:01:59]} 8. b3 {[%clk 0:02:06]}  g6 {[%clk 0:01:55]} 9. Ba3 {[%clk 0:01:54]}  Bg7 {[%clk 0:01:55]} 10. Rc1 {[%clk 0:01:55]}  O-O {[%clk 0:01:52]} 11. Nf3 {[%clk 0:01:52]}  Nb6 {[%clk 0:01:23]} 12. Bxe7 {[%clk 0:01:45]}  Qc8 {[%clk 0:01:22]} 13. Nd6 {[%clk 0:01:06]}  Qxb7 {[%clk 0:01:17]} 14. Nxb7 {[%clk 0:01:06]}  Rfe8 {[%clk 0:01:15]} 15. Ba3 {[%clk 0:01:03]}  Bc8 {[%clk 0:01:14]} 16. Nd6 {[%clk 0:01:01]}  Rd8 {[%clk 0:01:11]} 17. Nxc8 {[%clk 0:00:51]}  Raxc8 {[%clk 0:01:11]} 18. O-O {[%clk 0:00:50]}  Re8 {[%clk 0:01:10]} 19. e3 {[%clk 0:00:48]}  Nfd5 {[%clk 0:01:06]} 20. d4 {[%clk 0:00:46]}  a5 {[%clk 0:01:03]} 21. Nd2 {[%clk 0:00:44]}  a4 {[%clk 0:00:59]} 22. Ne4 {[%clk 0:00:30]}  Red8 {[%clk 0:00:47]} 23. Bc5 {[%clk 0:00:20]}  axb3 {[%clk 0:00:45]} 24. axb3 {[%clk 0:00:21]}  Bf8 {[%clk 0:00:42]} 25. Ra1 {[%clk 0:00:11]}  Bxc5 {[%clk 0:00:41]} 26. Nxc5 {[%clk 0:00:12]}  Nb4 {[%clk 0:00:34]} 27. Ra7 {[%clk 0:00:08]}  Ra8 {[%clk 0:00:26]} 28. Rfa1 {[%clk 0:00:07]}  Rxa7 {[%clk 0:00:18]} 29. Rxa7 {[%clk 0:00:08]}  Ra8 {[%clk 0:00:18]} 30. Rb7 {[%clk 0:00:08]}  Ra1+ {[%clk 0:00:18]} 31. Bf1 {[%clk 0:00:09]}  N6d5 {[%clk 0:00:18]} 32. Kg2 {[%clk 0:00:07]}  Na2 {[%clk 0:00:14]} 33. Bc4 {[%clk 0:00:06]}  Nac3 {[%clk 0:00:14]} 34. Rb8+ {[%clk 0:00:06]}  Kg7 {[%clk 0:00:13]} 35. Rc8 {[%clk 0:00:06]}  Ra2 {[%clk 0:00:10]} 36. Kg3 {[%clk 0:00:05]}  Ne2+ {[%clk 0:00:10]} 37. Kf3 {[%clk 0:00:05]}  Ng1+ {[%clk 0:00:08]} 38. Kg2 {[%clk 0:00:05]}  Ne2 {[%clk 0:00:03]} 39. Rxc6 {[%clk 0:00:04]}  Nxe3+ {[%clk 0:00:03]} 40. Kf3 {[%clk 0:00:01]}  Nxd4+ {[%clk 0:00:02]} 41. Kxe3 {[%clk 0:00:01]}  Nxc6 {[%clk 0:00:02]} 42. f4 {[%clk 0:00:01]}  Rxh2 {[%clk 0:00:02]} 43. Nd3 {[%clk 0:00:01]}  Rh1 {[%clk 0:00:02]} 44. Ke4 {[%clk 0:00:01]} 1-0


[Site "https://www.chess.com"]